fUST/lending_fUST_20240824
["ID","MTS","AMOUNT","RATE_DAILY","PERIOD"]
[335793910,1724494244318,-500.0,0.00013698,2]
[335793912,1724494244328,-500.0,0.00013698,2]
[335793914,1724494244337,-500.0,0.00013698,2]
[335793916,1724494244347,-500.0,0.00013698,2]
[335793918,1724494244356,-500.0,0.00013698,2]
[335793920,1724494244365,-500.0,0.00013698,2]
[335793922,1724494244376,-500.0,0.00013698,2]
[335793924,1724494244385,-500.0,0.00013698,2]
[335793926,1724494244394,-500.0,0.00013698,2]
[335793928,1724494244403,-500.0,0.00013698,2]
[335793930,1724494244412,-500.0,0.00013698,2]
[335793932,1724494244421,-500.0,0.00013698,2]
[335793934,1724494244431,-500.0,0.00013698,2]
[335793936,1724494244440,-782.0,0.00013698,2]
[335793938,1724494244450,-500.0,0.00013698,2]
[335793940,1724494244459,-500.0,0.00013698,2]
[335793942,1724494244468,-512.44720167,0.00013698,2]
[335793944,1724494244477,-500.0,0.00013698,2]
[335793945,1724494244486,-500.0,0.00013698,2]
[335793947,1724494244497,-500.0,0.00013698,2]
[335793949,1724494244508,-500.0,0.00013698,2]
[335793951,1724494244517,-500.0,0.00013698,2]
[335793953,1724494244526,-500.0,0.00013698,2]
[335793956,1724494244537,-500.0,0.00013698,2]
[335793958,1724494244548,-193.80537047,0.00013698,2]
[335793960,1724494244558,-500.0,0.00013698,2]
[335793962,1724494244568,-500.0,0.00013698,2]
[335793964,1724494244578,-500.0,0.00013698,2]
[335793966,1724494244587,-500.0,0.00013698,2]
[335793968,1724494244596,-3170.26,0.00013698,2]
[335793970,1724494244607,-500.0,0.00013698,2]
[335793972,1724494244616,-500.0,0.00013698,2]
[335793974,1724494244626,-515.1272377,0.00013698,2]
[335793976,1724494244635,-3010.9,0.00013698,2]
[335793978,1724494244648,-500.0,0.00013698,2]
[335793980,1724494244658,-500.0,0.00013698,2]
[335793982,1724494244668,-500.0,0.00013698,2]
[335793984,1724494244678,-500.0,0.00013698,2]
[335793986,1724494244688,-500.0,0.00013698,2]
[335793988,1724494244698,-656.12,0.00013698,2]
[335793990,1724494244707,-500.0,0.00013698,2]
[335793992,1724494244716,-500.0,0.00013698,2]
[335793994,1724494244728,-500.0,0.00013698,2]
[335793996,1724494244737,-500.0,0.00013698,2]
[335793999,1724494244747,-500.0,0.00013698,2]
[335794001,1724494244757,-500.0,0.00013698,2]
[335794003,1724494244766,-500.0,0.00013698,2]
[335794005,1724494244775,-500.0,0.00013698,2]
[335794007,1724494244784,-500.0,0.00013698,2]
[335794009,1724494244794,-500.0,0.00013698,2]
[335794011,1724494244804,-500.0,0.00013698,2]
[335794013,1724494244814,-500.0,0.00013698,2]
[335794015,1724494244823,-500.0,0.00013698,2]
[335794017,1724494244832,-500.0,0.00013698,2]
[335794019,1724494244842,-500.0,0.00013698,2]
[335794021,1724494244851,-500.0,0.00013698,2]
[335794023,1724494244861,-500.0,0.00013698,2]
[335794025,1724494244871,-500.0,0.00013698,2]
[335794027,1724494244881,-500.0,0.00013698,2]
[335794029,1724494244890,-500.0,0.00013698,2]
[335794031,1724494244900,-501.11720891,0.00013698,2]
[335794033,1724494244910,-613.11,0.00013698,2]
[335794035,1724494244921,-500.0,0.00013698,2]
[335794037,1724494244930,-500.0,0.00013698,2]
[335794039,1724494244940,-500.0,0.00013698,2]
[335794041,1724494244952,-500.0,0.00013698,2]
[335794043,1724494244961,-500.0,0.00013698,2]
[335794045,1724494244971,-500.0,0.00013698,2]
[335794047,1724494244982,-500.0,0.00013698,2]
[335794049,1724494244991,-500.0,0.00013698,2]
[335794052,1724494245002,-500.0,0.00013698,2]
[335794054,1724494245012,-500.0,0.00013698,2]
[335794056,1724494245022,-656.25,0.00013698,2]
[335794058,1724494245032,-825.83,0.00013698,2]
[335794060,1724494245042,-500.0,0.00013698,2]
[335794062,1724494245051,-540.37,0.00013698,2]
[335794064,1724494245061,-505.43898382,0.00013698,2]
[335794066,1724494245071,-500.0,0.00013698,2]
[335794068,1724494245080,-500.0,0.00013698,2]
[335794070,1724494245090,-500.0,0.00013698,2]
[335794072,1724494245099,-500.0,0.00013698,2]
[335794074,1724494245109,-500.0,0.00013698,2]
[335794076,1724494245119,-880.83,0.00013698,2]
[335794078,1724494245128,-260.0,0.00013698,2]
[335794080,1724494245138,-500.0,0.00013698,2]
[335794082,1724494245148,-775.17,0.00013698,2]
[335794084,1724494245158,-500.0,0.00013698,2]
[335794086,1724494245167,-500.0,0.00013698,2]
[335794088,1724494245178,-258.0,0.00013698,2]
[335794090,1724494245188,-734.16,0.00013698,2]
[335794092,1724494245197,-1179.83,0.00013698,2]
[335794094,1724494245206,-500.0,0.00013698,2]
[335794096,1724494245216,-500.85815529,0.00013698,2]
[335794098,1724494245226,-500.0,0.00013698,2]
[335794100,1724494245235,-500.0,0.00013698,2]
[335794102,1724494245244,-500.0,0.00013698,2]
[335794104,1724494245254,-500.0,0.00013698,2]
[335794106,1724494245263,-500.0,0.00013698,2]
[335794108,1724494245273,-500.0,0.00013698,2]
[335794110,1724494245283,-500.0,0.00013698,2]
[335794112,1724494245293,-500.0,0.00013698,2]
[335794114,1724494245303,-500.0,0.00013698,2]
[335794116,1724494245313,-914.12,0.00013698,2]
[335794118,1724494245322,-500.0,0.00013698,2]
[335794120,1724494245332,-500.0,0.00013698,2]
[335794122,1724494245341,-500.0,0.00013698,2]
[335794124,1724494245351,-531.46,0.00013698,2]
[335794127,1724494245362,-500.0,0.00013698,2]
[335794130,1724494245384,-500.0,0.00013698,2]
[335794132,1724494245394,-500.0,0.00013698,2]
[335794134,1724494245406,-756.7,0.00013698,2]
[335794137,1724494245418,-622.2,0.00013698,2]
[335794139,1724494245430,-500.0,0.00013698,2]
[335794142,1724494245441,-500.0,0.00013698,2]
[335794144,1724494245450,-427.47475264,0.00013698,2]
[335794146,1724494245460,-500.0,0.00013698,2]
[335794148,1724494245470,-668.94,0.00013698,2]
[335794150,1724494245481,-499.99680539,0.00013698,2]
[335794152,1724494245491,-500.0,0.00013698,2]
[335794154,1724494245501,-500.0,0.00013698,2]
[335794156,1724494245511,-500.0,0.00013698,2]
[335794158,1724494245521,-2070.83,0.00013698,2]
[335794160,1724494245531,-500.0,0.00013698,2]
[335794162,1724494245542,-2868.79,0.00013698,2]
[335794165,1724494245555,-759.88,0.00013698,2]
[335794167,1724494245566,-500.0,0.00013698,2]
[335794169,1724494245576,-500.0,0.00013698,2]
[335794171,1724494245586,-500.0,0.00013698,2]
[335794173,1724494245597,-527.90559748,0.00013698,2]
[335794175,1724494245610,-500.0,0.00013698,2]
[335794178,1724494245624,-500.0,0.00013698,2]
[335794180,1724494245635,-500.0,0.00013698,2]
[335794182,1724494245646,-714.28,0.00013698,2]
[335794184,1724494245660,-714.28,0.00013698,2]
[335794186,1724494245671,-500.0,0.00013698,2]
[335794188,1724494245683,-714.28,0.00013698,2]
[335794191,1724494245692,-714.28,0.00013698,2]
[335794192,1724494245702,-714.28,0.00013698,2]
[335794194,1724494245712,-714.28,0.00013698,2]
[335794196,1724494245723,-714.28,0.00013698,2]
[335794199,1724494245733,-500.0,0.00013698,2]
[335794201,1724494245743,-714.28,0.00013698,2]
[335794203,1724494245753,-714.28,0.00013698,2]
[335794205,1724494245764,-714.28,0.00013698,2]
[335794207,1724494245774,-714.28,0.00013698,2]
[335794209,1724494245784,-714.28,0.00013698,2]
[335794211,1724494245794,-714.28,0.00013698,2]
[335794213,1724494245804,-714.28,0.00013698,2]
[335794215,1724494245814,-714.28,0.00013698,2]
[335794217,1724494245824,-500.0,0.00013698,2]
[335794219,1724494245835,-714.28,0.00013698,2]
[335794221,1724494245845,-714.28,0.00013698,2]
[335794223,1724494245855,-714.28,0.00013698,2]
[335794225,1724494245866,-714.28,0.00013698,2]
[335794227,1724494245877,-714.28,0.00013698,2]
[335794230,1724494245887,-714.28,0.00013698,2]
[335794232,1724494245898,-516.55611504,0.00013698,2]
[335794234,1724494245907,-714.28,0.00013698,2]
[335794236,1724494245918,-714.28,0.00013698,2]
[335794238,1724494245927,-714.39679672,0.00013698,2]
[335794240,1724494245938,-599.98714986,0.00013698,2]
[335794242,1724494245948,-500.0,0.00013698,2]
[335794244,1724494245958,-673.55,0.00013698,2]
[335794247,1724494245972,-673.55,0.00013698,2]
[335794249,1724494245983,-673.55,0.00013698,2]
[335794251,1724494245993,-500.0,0.00013698,2]
[335794253,1724494246003,-673.55,0.00013698,2]
[335794255,1724494246013,-673.55,0.00013698,2]
[335794257,1724494246023,-673.55,0.00013698,2]
[335794259,1724494246034,-673.55,0.00013698,2]
[335794261,1724494246044,-500.0,0.00013698,2]
[335794263,1724494246054,-2405.61,0.00013698,2]
[335794265,1724494246064,-673.55,0.00013698,2]
[335794267,1724494246074,-673.55,0.00013698,2]
[335794270,1724494246084,-673.55,0.00013698,2]
[335794272,1724494246095,-673.55,0.00013698,2]
[335794274,1724494246104,-673.55,0.00013698,2]
[335794276,1724494246115,-673.55,0.00013698,2]
[335794278,1724494246125,-673.55,0.00013698,2]
[335794280,1724494246135,-673.55,0.00013698,2]
[335794282,1724494246144,-673.55,0.00013698,2]
[335794284,1724494246155,-673.55,0.00013698,2]
[335794286,1724494246164,-673.55,0.00013698,2]
[335794288,1724494246175,-629.82,0.00013698,2]
[335794290,1724494246184,-673.55,0.00013698,2]
[335794292,1724494246194,-673.55,0.00013698,2]
[335794294,1724494246204,-630.44304182,0.00013698,2]
[335794296,1724494246214,-673.55,0.00013698,2]
[335794299,1724494246225,-673.55,0.00013698,2]
[335794301,1724494246235,-673.55,0.00013698,2]
[335794303,1724494246247,-834.01,0.00013698,2]
[335794305,1724494246257,-673.69454486,0.00013698,2]
[335794307,1724494246268,-500.0,0.00013698,2]
[335794309,1724494246278,-500.0,0.00013698,2]
[335794311,1724494246288,-500.0,0.00013698,2]
[335794313,1724494246298,-150.0,0.00013698,2]
[335794315,1724494246307,-500.0,0.00013698,2]
[335794318,1724494246317,-500.0,0.00013698,2]
[335794320,1724494246327,-579.06,0.00013698,2]
[335794322,1724494246338,-666.55,0.00013698,2]
[335794324,1724494246348,-500.0,0.00013698,2]
[335794326,1724494246361,-523.73,0.00013698,2]
[335794328,1724494246372,-500.0,0.00013698,2]
[335794330,1724494246383,-500.0,0.00013698,2]
[335794332,1724494246393,-795.32,0.00013698,2]
[335794334,1724494246403,-629.47,0.00013698,2]
[335794337,1724494246416,-500.0,0.00013698,2]
[335794339,1724494246428,-500.0,0.00013698,2]
[335794341,1724494246438,-500.0,0.00013698,2]
[335794343,1724494246448,-500.0,0.00013698,2]
[335794345,1724494246458,-500.0,0.00013698,2]
[335794347,1724494246468,-2488.34,0.00013698,2]
[335794349,1724494246478,-661.21,0.00013698,2]
[335794350,1724494246488,-451.02923329,0.00013698,2]
[335794351,1724494246498,-585.61,0.00013698,2]
[335794352,1724494246509,-500.0,0.00013698,2]
[335794353,1724494246518,-507.59,0.00013698,2]
[335794354,1724494246528,-500.0,0.00013698,2]
[335794355,1724494246538,-540.55,0.00013698,2]
[335794356,1724494246548,-724.25,0.00013698,2]
[335794357,1724494246558,-1053.45,0.00013698,2]
[335794358,1724494246568,-569.06,0.00013698,2]
[335794359,1724494246578,-1862.51,0.00013698,2]
[335794360,1724494246588,-500.0,0.00013698,2]
[335794362,1724494246598,-500.0,0.00013698,2]
[335794365,1724494246609,-500.0,0.00013698,2]
[335794367,1724494246620,-500.0,0.00013698,2]
[335794369,1724494246631,-500.0,0.00013698,2]
[335794371,1724494246642,-500.0,0.00013698,2]
[335794373,1724494246659,-787.89,0.00013698,2]
[335794375,1724494246669,-891.48,0.00013698,2]
[335794377,1724494246679,-1861.39,0.00013698,2]
[335794379,1724494246691,-500.0,0.00013698,2]
[335794381,1724494246701,-500.0,0.00013698,2]
[335794383,1724494246711,-699.64,0.00013698,2]
[335794386,1724494246725,-500.0,0.00013698,2]
[335794388,1724494246735,-500.0,0.00013698,2]
[335794390,1724494246745,-500.0,0.00013698,2]
[335794392,1724494246755,-159.93009355,0.00013698,2]
[335794394,1724494246767,-769.57,0.00013698,2]
[335794396,1724494246777,-500.0,0.00013698,2]
[335794398,1724494246788,-500.0,0.00013698,2]
[335794400,1724494246799,-500.0,0.00013698,2]
[335794402,1724494246810,-500.0,0.00013698,2]
[335794404,1724494246821,-500.0,0.00013698,2]
[335794407,1724494246832,-1049.02,0.00013698,2]
[335794409,1724494246846,-500.0,0.00013698,2]
[335794411,1724494246857,-534.06379751,0.00013698,2]
[335794413,1724494246868,-738.6,0.00013698,2]
[335794415,1724494246879,-500.0,0.00013698,2]
[335794417,1724494246889,-500.0,0.00013698,2]
[335794419,1724494246900,-449.81063824,0.00013698,2]
[335794421,1724494246910,-500.0,0.00013698,2]
[335794423,1724494246921,-934.93,0.00013698,2]
[335794425,1724494246932,-500.0,0.00013698,2]
[335794427,1724494246942,-511.04,0.00013698,2]
[335794430,1724494246954,-500.0,0.00013698,2]
[335794432,1724494246964,-500.0,0.00013698,2]
[335794434,1724494246974,-500.0,0.00013698,2]
[335794436,1724494246984,-1305.2,0.00013698,2]
[335794438,1724494246994,-500.95745786,0.00013698,2]
[335794440,1724494247004,-500.0,0.00013698,2]
[335794442,1724494247014,-500.0,0.00013698,2]
[335794444,1724494247026,-500.0,0.00013698,2]
[335794446,1724494247036,-500.0,0.00013698,2]
[335794448,1724494247046,-500.0,0.00013698,2]
[335794450,1724494247056,-500.0,0.00013698,2]
[335794452,1724494247067,-661.36,0.00013698,2]
[335794454,1724494247077,-555.1,0.00013698,2]
[335794456,1724494247087,-1607.52,0.00013698,2]
[335794459,1724494247096,-500.0,0.00013698,2]
[335794461,1724494247106,-500.0,0.00013698,2]
[335794463,1724494247124,-840.89,0.00013698,2]
[335794465,1724494247134,-985.55,0.00013698,2]
[335794467,1724494247145,-500.0,0.00013698,2]
[335794469,1724494247156,-500.0,0.00013698,2]
[335794471,1724494247167,-500.0,0.00013698,2]
[335794473,1724494247177,-768.73,0.00013698,2]
[335794475,1724494247186,-1195.25,0.00013698,2]
[335794477,1724494247196,-2424.41,0.00013698,2]
[335794480,1724494247207,-500.0,0.00013698,2]
[335794482,1724494247218,-674.98,0.00013698,2]
[335794484,1724494247229,-500.0,0.00013698,2]
[335794486,1724494247238,-500.0,0.00013698,2]
[335794488,1724494247249,-500.0,0.00013698,2]
[335794490,1724494247259,-500.0,0.00013698,2]
[335794492,1724494247269,-500.0,0.00013698,2]
[335794494,1724494247279,-500.0,0.00013698,2]
[335794496,1724494247288,-500.0,0.00013698,2]
[335794498,1724494247298,-500.0,0.00013698,2]
[335794501,1724494247315,-500.0,0.00013698,2]
[335794503,1724494247328,-500.0,0.00013698,2]
[335794505,1724494247338,-500.0,0.00013698,2]
[335794507,1724494247348,-500.0,0.00013698,2]
[335794509,1724494247358,-500.0,0.00013698,2]
[335794511,1724494247371,-500.0,0.00013698,2]
[335794513,1724494247380,-500.0,0.00013698,2]
[335794515,1724494247390,-500.0,0.00013698,2]
[335794517,1724494247401,-500.0,0.00013698,2]
[335794519,1724494247411,-500.0,0.00013698,2]
[335794521,1724494247421,-500.0,0.00013698,2]
[335794523,1724494247431,-500.0,0.00013698,2]
[335794525,1724494247441,-500.0,0.00013698,2]
[335794527,1724494247451,-447.60060409,0.00013698,2]
[335794530,1724494247462,-500.0,0.00013698,2]
[335794532,1724494247472,-695.4,0.00013698,2]
[335794534,1724494247482,-2185.27,0.00013698,2]
[335794536,1724494247493,-504.03413542,0.00013698,2]
[335794538,1724494247502,-500.0,0.00013698,2]
[335794540,1724494247513,-522.96,0.00013698,2]
[335794542,1724494247522,-500.0,0.00013698,2]
[335794544,1724494247532,-500.0,0.00013698,2]
[335794546,1724494247542,-1129.97,0.00013698,2]
[335794548,1724494247552,-876.37,0.00013698,2]
[335794550,1724494247562,-500.0,0.00013698,2]
[335794552,1724494247571,-500.0,0.00013698,2]
[335794554,1724494247581,-500.0,0.00013698,2]
[335794556,1724494247591,-500.0,0.00013698,2]
[335794558,1724494247601,-500.0,0.00013698,2]
[335794560,1724494247612,-500.0,0.00013698,2]
[335794562,1724494247622,-915.0,0.00013698,2]
[335794564,1724494247632,-937.97,0.00013698,2]
[335794566,1724494247643,-500.0,0.00013698,2]
[335794569,1724494247657,-807.9,0.00013698,2]
[335794571,1724494247667,-575.68528405,0.00013698,2]
[335794573,1724494247677,-2707.52,0.00013698,2]
[335794575,1724494247688,-473.13330551,0.00013698,2]
[335794577,1724494247698,-500.0,0.00013698,2]
[335794579,1724494247708,-500.0,0.00013698,2]
[335794581,1724494247721,-500.0,0.00013698,2]
[335794583,1724494247733,-524.22806794,0.00013698,2]
[335794585,1724494247744,-942.71,0.00013698,2]
[335794588,1724494247754,-500.0,0.00013698,2]
[335794590,1724494247768,-1241.19,0.00013698,2]
[335794592,1724494247779,-500.0,0.00013698,2]
[335794594,1724494247789,-500.0,0.00013698,2]
[335794596,1724494247800,-500.25966525,0.00013698,2]
[335794598,1724494247810,-680.41,0.00013698,2]
[335794600,1724494247821,-500.0,0.00013698,2]
[335794602,1724494247831,-883.39,0.00013698,2]
[335794604,1724494247841,-500.0,0.00013698,2]
[335794606,1724494247851,-708.71,0.00013698,2]
[335794609,1724494247871,-733.17,0.00013698,2]
[335794611,1724494247883,-1169.01,0.00013698,2]
[335794613,1724494247893,-500.0,0.00013698,2]
[335794615,1724494247903,-1038.66,0.00013698,2]
[335794617,1724494247915,-500.0,0.00013698,2]
[335794619,1724494247926,-500.0,0.00013698,2]
[335794621,1724494247938,-500.0,0.00013698,2]
[335794624,1724494247948,-500.0,0.00013698,2]
[335794626,1724494247958,-500.0,0.00013698,2]
[335794628,1724494247969,-842.4,0.00013698,2]
[335794658,1724494248246,-546.74,0.00013698,2]
[335794660,1724494248257,-503.89,0.00013698,2]
[335794662,1724494248267,-500.0,0.00013698,2]
[335794664,1724494248278,-500.0,0.00013698,2]
[335794666,1724494248287,-500.0,0.00013698,2]
[335794668,1724494248297,-1930.64,0.00013698,2]
[335794670,1724494248307,-500.0,0.00013698,2]
[335794672,1724494248316,-500.0,0.00013698,2]
[335794674,1724494248325,-504.91863653,0.00013698,2]
[335794676,1724494248335,-500.0,0.00013698,2]
[335794678,1724494248345,-863.87,0.00013698,2]
[335794680,1724494248355,-542.60168054,0.00013698,2]
[335794682,1724494248365,-500.0,0.00013698,2]
[335794684,1724494248375,-1480.85,0.00013698,2]
[335794686,1724494248385,-500.0,0.00013698,2]
[335794689,1724494248395,-1016.77,0.00013698,2]
[335794691,1724494248405,-500.0,0.00013698,2]
[335794693,1724494248415,-500.0,0.00013698,2]
[335794695,1724494248427,-642.77,0.00013698,2]
[335794697,1724494248437,-500.0,0.00013698,2]
[335794699,1724494248447,-1464.93,0.00013698,2]
[335794701,1724494248457,-838.68,0.00013698,2]
[335794703,1724494248467,-500.0,0.00013698,2]
[335794705,1724494248477,-602.71,0.00013698,2]
[335794707,1724494248487,-500.0,0.00013698,2]
[335794710,1724494248498,-681.91,0.00013698,2]
[335794712,1724494248507,-500.0,0.00013698,2]
[335794714,1724494248517,-500.0,0.00013698,2]
[335794716,1724494248528,-504.06,0.00013698,2]
[335794718,1724494248538,-564.29,0.00013698,2]
[335794720,1724494248548,-500.0,0.00013698,2]
[335794722,1724494248559,-500.0,0.00013698,2]
[335794724,1724494248569,-1500.12,0.00013698,2]
[335794726,1724494248578,-500.0,0.00013698,2]
[335794728,1724494248588,-500.0,0.00013698,2]
[335794730,1724494248598,-500.0,0.00013698,2]
[335794732,1724494248608,-508.35,0.00013698,2]
[335794734,1724494248629,-500.0,0.00013698,2]
[335794736,1724494248638,-315.43926399,0.00013698,2]
[335794738,1724494248651,-500.0,0.00013698,2]
[335794740,1724494248662,-1375.37,0.00013698,2]
[335794741,1724494248671,-500.0,0.00013698,2]
[335794742,1724494248680,-500.0,0.00013698,2]
[335794743,1724494248691,-500.0,0.00013698,2]
[335794744,1724494248701,-500.0,0.00013698,2]
[335794745,1724494248710,-500.0,0.00013698,2]
[335794746,1724494248719,-500.0,0.00013698,2]
[335794747,1724494248731,-500.0,0.00013698,2]
[335794748,1724494248741,-500.0,0.00013698,2]
[335794749,1724494248750,-500.0,0.00013698,2]
[335794750,1724494248759,-692.53,0.00013698,2]
[335794752,1724494248769,-651.61,0.00013698,2]
[335794753,1724494248779,-500.0,0.00013698,2]
[335794755,1724494248788,-500.0,0.00013698,2]
[335794757,1724494248798,-500.0,0.00013698,2]
[335794759,1724494248807,-851.99,0.00013698,2]
[335794761,1724494248817,-524.10641745,0.00013698,2]
[335794763,1724494248827,-582.81026484,0.00013698,2]
[335794765,1724494248837,-500.0,0.00013698,2]
[335794767,1724494248847,-500.0,0.00013698,2]
[335794769,1724494248858,-500.0,0.00013698,2]
[335794771,1724494248869,-500.0,0.00013698,2]
[335794773,1724494248879,-500.0,0.00013698,2]
[335794775,1724494248890,-500.0,0.00013698,2]
[335794777,1724494248900,-500.0,0.00013698,2]
[335794779,1724494248910,-1502.43,0.00013698,2]
[335794782,1724494248921,-500.0,0.00013698,2]
[335794784,1724494248933,-1232.98,0.00013698,2]
[335794786,1724494248944,-1219.37,0.00013698,2]
[335794788,1724494248955,-531.27393272,0.00013698,2]
[335794790,1724494248965,-534.77,0.00013698,2]
[335794792,1724494248975,-500.0,0.00013698,2]
[335794794,1724494248986,-1650.66,0.00013698,2]
[335794796,1724494248996,-585.26,0.00013698,2]
[335794798,1724494249007,-372.73170538,0.00013698,2]
[335794800,1724494249016,-1124.13,0.00013698,2]
[335794802,1724494249027,-2020.85,0.00013698,2]
[335794804,1724494249037,-1382.45,0.00013698,2]
[335794807,1724494249060,-500.0,0.00013698,2]
[335794809,1724494249072,-1981.22,0.00013698,2]
[335794812,1724494249083,-500.0,0.00013698,2]
[335794814,1724494249094,-550.92,0.00013698,2]
[335794816,1724494249105,-500.0,0.00013698,2]
[335794818,1724494249119,-500.0,0.00013698,2]
[335794820,1724494249131,-1081.53,0.00013698,2]
[335794822,1724494249142,-500.0,0.00013698,2]
[335794824,1724494249152,-500.0,0.00013698,2]
[335794826,1724494249163,-1223.2,0.00013698,2]
[335794829,1724494249174,-500.0,0.00013698,2]
[335794831,1724494249184,-500.0,0.00013698,2]
[335794833,1724494249194,-500.0,0.00013698,2]
[335794835,1724494249205,-850.58,0.00013698,2]
[335794837,1724494249216,-500.0,0.00013698,2]
[335794839,1724494249226,-2324.699907,0.00013698,2]
[335794841,1724494249238,-2324.699907,0.00013698,2]
[335794843,1724494249249,-279.85197933,0.00013698,2]
[335794846,1724494249259,-2435.42,0.00013698,2]
[335794848,1724494249269,-500.0,0.00013698,2]
[335794850,1724494249280,-500.0,0.00013698,2]
[335794852,1724494249290,-500.0,0.00013698,2]
[335794854,1724494249301,-500.0,0.00013698,2]
[335794856,1724494249311,-550.94,0.00013698,2]
[335794858,1724494249322,-2324.699907,0.00013698,2]
[335794860,1724494249332,-2324.699907,0.00013698,2]
[335794862,1724494249342,-500.0,0.00013698,2]
[335794864,1724494249352,-912.48,0.00013698,2]
[335794866,1724494249363,-500.0,0.00013698,2]
[335794868,1724494249373,-639.12,0.00013698,2]
[335794871,1724494249383,-500.0,0.00013698,2]
[335794873,1724494249394,-500.0,0.00013698,2]
[335794875,1724494249405,-752.51,0.00013698,2]
[335794877,1724494249416,-233.35325357,0.00013698,2]
[335794879,1724494249426,-500.0,0.00013698,2]
[335794881,1724494249437,-1262.17,0.00013698,2]
[335794884,1724494249447,-500.0,0.00013698,2]
[335794886,1724494249457,-880.86,0.00013698,2]
[335794888,1724494249467,-500.0,0.00013698,2]
[335794890,1724494249478,-500.0,0.00013698,2]
[335794892,1724494249488,-553.58,0.00013698,2]
[335794894,1724494249498,-500.0,0.00013698,2]
[335794896,1724494249508,-500.0,0.00013698,2]
[335794898,1724494249519,-500.0,0.00013698,2]
[335794900,1724494249529,-500.0,0.00013698,2]
[335794902,1724494249538,-500.77864388,0.00013698,2]
[335794904,1724494249548,-2428.33,0.00013698,2]
[335794907,1724494249559,-500.0,0.00013698,2]
[335794909,1724494249570,-500.0,0.00013698,2]
[335794911,1724494249580,-500.0,0.00013698,2]
[335794913,1724494249590,-795.26,0.00013698,2]
[335794915,1724494249600,-500.0,0.00013698,2]
[335794917,1724494249613,-675.71,0.00013698,2]
[335794919,1724494249625,-589.03,0.00013698,2]
[335794922,1724494249635,-5798.0,0.00013698,2]
[335794924,1724494249646,-500.0,0.00013698,2]
[335794926,1724494249658,-500.0,0.00013698,2]
[335794928,1724494249668,-717.87,0.00013698,2]
[335794930,1724494249679,-500.0,0.00013698,2]
[335794932,1724494249690,-500.0,0.00013698,2]
[335794934,1724494249700,-500.0,0.00013698,2]
[335794936,1724494249710,-661.51,0.00013698,2]
[335794938,1724494249721,-500.0,0.00013698,2]
[335794940,1724494249733,-500.0,0.00013698,2]
[335794943,1724494249744,-1076.4,0.00013698,2]
[335794945,1724494249756,-500.0,0.00013698,2]
[335794947,1724494249766,-253.09911784,0.00013698,2]
[335794949,1724494249775,-500.0,0.00013698,2]
[335794951,1724494249785,-501.35155916,0.00013698,2]
[335794953,1724494249796,-500.0,0.00013698,2]